[Event "EUCC Open Blitz 2024"]
[Site "Miskolc"]
[Date "2024.07.13"]
[Round "1.1"]
[White "Manafov, Vugar"]
[Black "Veiga, Jose Francisco R P N"]
[Result "1-0"]
[ECO "A05"]
[WhiteElo "2430"]
[BlackElo "2385"]
[PlyCount "95"]
[EventDate "2024.07.08"]
[EventType "team-tourn"]
[EventCountry "HUN"]
[TimeControl "1500+10"]

1. Nf3 {[%emt 0:22:18]} Nf6 {[%emt 0:22:17]} 2. g3 {[%emt 0:00:09]} g6 {[%emt 0:00:09]} 3. b3 {[%emt 0:00:12]} Bg7 {[%emt 0:00:10]} 4. Bb2 {[%emt 0:00:09]} O-O {[%emt 0:00:10]} 5. Bg2 {[%emt 0:00:08]} c5 {[%emt 0:00:10]} 6. c4 {[%emt 0:00:09]} Nc6 {[%emt 0:00:10]} 7. O-O {[%emt 0:00:10]} d6 {[%emt 0:00:11]} 8. d4 {[%emt 0:00:10]} cxd4 {[%emt 0:00:11]} 9. Nxd4 {[%emt 0:00:09]} Bd7 {[%emt 0:00:09]} 10. Nc3 {[%emt 0:00:08]} Qa5 {[%emt 0:00:13]} 11. e3 {[%emt 0:00:22]} Rfc8 {[%emt 0:00:18]} 12. Rc1 {[%emt 0:00:22]} Rab8 {[%emt 0:00:10]} 13. Qe2 {[%emt 0:00:15]} a6 {[%emt 0:00:14]} 14. Rfd1 {[%emt 0:00:52]} Bg4 {[%emt 0:00:24]} 15. Bf3 {[%emt 0:00:22]} Qh5 {[%emt 0:00:26]} 16. Kg2 {[%emt 0:00:22]} Qh3+ {[%emt 0:00:27]} 17. Kg1 {[%emt 0:00:09]} Ne5 {[%emt 0:00:08]} 18. Bxg4 {[%emt 0:00:16]} Nfxg4 {[%emt 0:00:22]} 19. f3 {[%emt 0:00:31]} Nf6 {[%emt 0:00:10]} 20. Nd5 {[%emt 0:00:31]} Nxd5 {[%emt 0:00:14]} 21. cxd5 {[%emt 0:00:09]} Rxc1 {[%emt 0:00:12]} 22. Rxc1 {[%emt 0:00:09]} Rc8 {[%emt 0:00:09]} 23. Rc2 {[%emt 0:00:42]} Qd7 {[%emt 0:00:19]} 24. Kg2 {[%emt 0:00:12]} Rc7 {[%emt 0:00:19]} 25. Rxc7 {[%emt 0:00:18]} Qxc7 {[%emt 0:00:10]} 26. Qc2 {[%emt 0:00:09]} Qxc2+ {[%emt 0:00:23]} 27. Nxc2 {[%emt 0:00:08]} Nd3 {[%emt 0:00:10]} 28. Bxg7 {[%emt 0:00:09]} Kxg7 {[%emt 0:00:09]} 29. f4 {[%emt 0:00:12]} Nc1 {[%emt 0:00:17]} 30. Kf3 {[%emt 0:00:12]} Nxa2 {[%emt 0:00:09]} 31. Ke4 {[%emt 0:00:09]} Nc3+ {[%emt 0:00:22]} 32. Kd4 {[%emt 0:00:09]} Nb5+ {[%emt 0:00:16]} 33. Kc4 {[%emt 0:00:09]} Nc7 34. e4 {[%emt 0:00:08]} e6 35. Ne3 exd5+ {[%emt 0:00:40]} 36. Nxd5 {[%emt 0:00:24]} Ne6 {[%emt 0:00:34]} 37. Nb6 {[%emt 0:00:11]} f5 {[%emt 0:00:21]} 38. exf5 {[%emt 0:00:13]} gxf5 39. Kd5 {[%emt 0:00:08]} Nc5 {[%emt 0:00:19]} 40. b4 {[%emt 0:00:09]} Nd3 {[%emt 0:00:10]} 41. Kxd6 {[%emt 0:00:12]} Nxb4 {[%emt 0:00:09]} 42. Ke5 {[%emt 0:00:09]} Kg6 {[%emt 0:00:09]} 43. Nc4 {[%emt 0:00:11]} Nd3+ {[%emt 0:00:09]} 44. Kd6 {[%emt 0:00:10]} b5 45. Ne5+ Nxe5 46. fxe5 b4 47. e6 b3 48. e7 1-0

[Event "EUCC Open Blitz 2024"]
[Site "Miskolc"]
[Date "2024.07.13"]
[Round "1.2"]
[White "Ribeiro, Rodrigo"]
[Black "Atakishiyev, Elmar"]
[Result "0-1"]
[ECO "D82"]
[WhiteElo "2181"]
[BlackElo "2356"]
[PlyCount "60"]
[EventDate "2024.07.08"]
[EventType "team-tourn"]
[EventCountry "HUN"]
[TimeControl "1500+10"]

1. d4 {[%emt 0:22:16]} Nf6 {[%emt 0:22:17]} 2. c4 {[%emt 0:00:09]} g6 {[%emt 0:00:08]} 3. Nc3 {[%emt 0:00:09]} d5 {[%emt 0:00:09]} 4. Bf4 {[%emt 0:00:09]} Bg7 {[%emt 0:00:15]} 5. e3 {[%emt 0:00:09]} c6 {[%emt 0:00:13]} 6. Bd3 {[%emt 0:00:13]} O-O {[%emt 0:00:09]} 7. h3 {[%emt 0:00:13]} Be6 {[%emt 0:00:16]} 8. cxd5 {[%emt 0:00:26]} Nxd5 {[%emt 0:00:09]} 9. Nge2 {[%emt 0:00:31]} c5 {[%emt 0:00:14]} 10. dxc5 {[%emt 0:00:19]} Qa5 {[%emt 0:00:20]} 11. O-O {[%emt 0:00:11]} Qxc5 {[%emt 0:00:11]} 12. Nxd5 {[%emt 0:00:53]} Qxd5 {[%emt 0:00:09]} 13. Qc2 {[%emt 0:00:48]} Nc6 {[%emt 0:00:09]} 14. Nc3 {[%emt 0:00:38]} Qa5 {[%emt 0:00:28]} 15. a3 {[%emt 0:00:13]} Rac8 {[%emt 0:00:09]} 16. Rfc1 {[%emt 0:00:13]} Rfd8 {[%emt 0:00:10]} 17. Be4 {[%emt 0:00:10]} b5 {[%emt 0:00:38]} 18. Qe2 {[%emt 0:00:10]} Bc4 19. Qf3 Ne5 {[%emt 0:00:31]} 20. Bxe5 {[%emt 0:00:20]} Bxe5 {[%emt 0:00:08]} 21. b4 {[%emt 0:00:23]} Qb6 22. Rab1 e6 {[%emt 0:00:30]} 23. Ne2 {[%emt 0:00:18]} f5 24. Bc2 {[%emt 0:00:14]} Ba2 {[%emt 0:00:41]} 25. Rf1 {[%emt 0:00:10]} Rxc2 {[%emt 0:00:11]} 26. Rbd1 {[%emt 0:00:11]} Bd5 {[%emt 0:00:17]} 27. e4 {[%emt 0:00:09]} Bxe4 {[%emt 0:00:14]} 28. Rxd8+ {[%emt 0:00:10]} Qxd8 {[%emt 0:00:09]} 29. Qe3 {[%emt 0:00:09]} Qd3 {[%emt 0:00:15]} 30. Qc5 {[%emt 0:00:09]} Rxc5 {[%emt 0:00:10]} 0-1

[Event "EUCC Open Blitz 2024"]
[Site "Miskolc"]
[Date "2024.07.13"]
[Round "1.3"]
[White "Muha, Miljenko"]
[Black "Kruckenhauser, Arthur"]
[Result "0-1"]
[ECO "A36"]
[WhiteElo "2245"]
[BlackElo "2340"]
[PlyCount "138"]
[EventDate "2024.07.08"]
[EventType "team-tourn"]
[EventCountry "HUN"]
[TimeControl "1500+10"]

1. c4 {[%emt 0:22:17]} c5 {[%emt 0:22:17]} 2. Nc3 {[%emt 0:00:11]} Nc6 {[%emt 0:00:08]} 3. g3 {[%emt 0:00:15]} g6 {[%emt 0:00:09]} 4. Bg2 {[%emt 0:00:09]} Bg7 {[%emt 0:00:09]} 5. d3 {[%emt 0:00:12]} e5 {[%emt 0:00:09]} 6. Nf3 {[%emt 0:00:30]} Nge7 {[%emt 0:00:10]} 7. O-O {[%emt 0:00:12]} d6 {[%emt 0:00:09]} 8. Ne1 {[%emt 0:00:13]} Be6 {[%emt 0:00:09]} 9. Nc2 {[%emt 0:00:09]} d5 {[%emt 0:00:09]} 10. cxd5 {[%emt 0:00:15]} Nxd5 {[%emt 0:00:09]} 11. Ne3 {[%emt 0:00:17]} Nb6 {[%emt 0:00:17]} 12. Bd2 {[%emt 0:00:15]} O-O {[%emt 0:00:09]} 13. Rc1 {[%emt 0:00:10]} c4 {[%emt 0:00:35]} 14. dxc4 {[%emt 0:00:18]} Nxc4 {[%emt 0:00:10]} 15. Nxc4 {[%emt 0:00:12]} Bxc4 {[%emt 0:00:10]} 16. b3 {[%emt 0:00:13]} Ba6 {[%emt 0:00:32]} 17. Re1 {[%emt 0:00:25]} Rc8 {[%emt 0:00:10]} 18. Nd5 {[%emt 0:00:20]} Re8 {[%emt 0:00:44]} 19. Bc3 {[%emt 0:00:17]} Nd4 {[%emt 0:00:34]} 20. e3 {[%emt 0:00:10]} Nb5 {[%emt 0:00:15]} 21. Bb4 {[%emt 0:00:16]} Bf8 {[%emt 0:01:03]} 22. Rxc8 Qxc8 {[%emt 0:00:09]} 23. Nf6+ {[%emt 0:00:43]} Kh8 {[%emt 0:00:12]} 24. Nxe8 {[%emt 0:00:44]} Bxb4 {[%emt 0:00:09]} 25. Nf6 {[%emt 0:00:13]} Bxe1 {[%emt 0:00:11]} 26. Qxe1 {[%emt 0:00:09]} Kg7 {[%emt 0:00:15]} 27. Nd5 {[%emt 0:00:09]} Qc2 {[%emt 0:00:11]} 28. Nb4 {[%emt 0:00:10]} Qc3 {[%emt 0:00:12]} 29. Qxc3 {[%emt 0:00:11]} Nxc3 {[%emt 0:00:09]} 30. Nxa6 {[%emt 0:00:11]} bxa6 {[%emt 0:00:08]} 31. a4 {[%emt 0:00:15]} a5 {[%emt 0:00:09]} 32. Kf1 {[%emt 0:00:12]} Kf6 {[%emt 0:00:14]} 33. Ke1 {[%emt 0:00:09]} Ke7 {[%emt 0:00:09]} 34. Kd2 {[%emt 0:00:09]} Na2 {[%emt 0:00:09]} 35. Bd5 {[%emt 0:00:11]} Nb4 {[%emt 0:00:10]} 36. Bc4 {[%emt 0:00:09]} f6 {[%emt 0:00:10]} 37. h4 {[%emt 0:00:10]} g5 {[%emt 0:00:12]} 38. Ke2 {[%emt 0:00:12]} gxh4 {[%emt 0:00:15]} 39. gxh4 {[%emt 0:00:09]} f5 {[%emt 0:00:10]} 40. f4 {[%emt 0:00:14]} exf4 {[%emt 0:00:13]} 41. exf4 {[%emt 0:00:09]} Nc6 {[%emt 0:00:11]} 42. Ke3 {[%emt 0:00:11]} Kf6 {[%emt 0:00:09]} 43. Bb5 {[%emt 0:00:16]} Ne7 {[%emt 0:00:11]} 44. Kd4 {[%emt 0:00:10]} Ng6 {[%emt 0:00:09]} 45. Kc5 {[%emt 0:00:14]} Nxh4 {[%emt 0:00:12]} 46. Bc4 {[%emt 0:00:11]} Ng6 {[%emt 0:00:11]} 47. Kb5 {[%emt 0:00:09]} h5 {[%emt 0:00:09]} 48. Kxa5 {[%emt 0:00:09]} h4 {[%emt 0:00:08]} 49. b4 {[%emt 0:00:11]} Nxf4 {[%emt 0:00:10]} 50. Ba6 {[%emt 0:00:11]} h3 {[%emt 0:00:11]} 51. Bb7 {[%emt 0:00:09]} Ne6 {[%emt 0:00:09]} 52. Ka6 {[%emt 0:00:09]} f4 {[%emt 0:00:12]} 53. Kxa7 {[%emt 0:00:09]} Nd4 {[%emt 0:00:09]} 54. b5 {[%emt 0:00:09]} f3 {[%emt 0:00:09]} 55. Bxf3 {[%emt 0:00:10]} Nxf3 {[%emt 0:00:08]} 56. b6 {[%emt 0:00:09]} Ne5 {[%emt 0:00:10]} 57. b7 {[%emt 0:00:09]} Nd7 {[%emt 0:00:09]} 58. a5 {[%emt 0:00:12]} h2 {[%emt 0:00:09]} 59. b8=Q {[%emt 0:00:11]} Nxb8 {[%emt 0:00:09]} 60. Kxb8 {[%emt 0:00:09]} h1=Q {[%emt 0:00:09]} 61. a6 {[%emt 0:00:08]} Qb1+ {[%emt 0:00:11]} 62. Ka8 {[%emt 0:00:10]} Qe4+ {[%emt 0:00:10]} 63. Kb8 {[%emt 0:00:10]} Qb4+ {[%emt 0:00:09]} 64. Ka8 {[%emt 0:00:09]} Qf8+ {[%emt 0:00:09]} 65. Kb7 Qe7+ {[%emt 0:00:09]} 66. Kb6 {[%emt 0:00:18]} Qd8+ {[%emt 0:00:12]} 67. Kb7 {[%emt 0:00:09]} Qd7+ {[%emt 0:00:09]} 68. Kb8 {[%emt 0:00:09]} Qb5+ {[%emt 0:00:14]} 69. Ka7 {[%emt 0:00:09]} Ke5 0-1

[Event "EUCC Open Blitz 2024"]
[Site "Miskolc"]
[Date "2024.07.13"]
[Round "1.4"]
[White "Leisch, Lukas"]
[Black "Pavic, Filip"]
[Result "0-1"]
[ECO "A36"]
[WhiteElo "2394"]
[BlackElo "2248"]
[PlyCount "96"]
[EventDate "2024.07.08"]
[EventType "team-tourn"]
[EventCountry "HUN"]
[TimeControl "1500+10"]

1. c4 {[%emt 0:22:17]} c5 {[%emt 0:22:17]} 2. g3 {[%emt 0:00:09]} Nc6 3. Bg2 g6 {[%emt 0:00:18]} 4. Nc3 {[%emt 0:00:20]} Bg7 {[%emt 0:00:08]} 5. d3 {[%emt 0:00:12]} d6 {[%emt 0:00:16]} 6. Qd2 {[%emt 0:00:09]} Bf5 {[%emt 0:00:23]} 7. b3 {[%emt 0:00:10]} Nf6 {[%emt 0:00:16]} 8. Bb2 {[%emt 0:00:09]} O-O {[%emt 0:00:10]} 9. h3 {[%emt 0:00:15]} Bd7 {[%emt 0:00:21]} 10. e3 {[%emt 0:00:12]} e5 {[%emt 0:00:40]} 11. Nge2 {[%emt 0:00:09]} Nh5 {[%emt 0:00:11]} 12. Ne4 {[%emt 0:00:25]} Be6 {[%emt 0:00:17]} 13. g4 {[%emt 0:00:13]} Nf6 {[%emt 0:00:11]} 14. N2c3 {[%emt 0:00:13]} Nxe4 {[%emt 0:00:14]} 15. dxe4 {[%emt 0:00:10]} Qd7 {[%emt 0:00:59]} 16. O-O-O {[%emt 0:00:32]} Rfd8 {[%emt 0:00:09]} 17. Nd5 {[%emt 0:00:17]} Rab8 {[%emt 0:00:17]} 18. f4 {[%emt 0:00:10]} f5 {[%emt 0:00:18]} 19. exf5 {[%emt 0:00:14]} gxf5 {[%emt 0:00:09]} 20. gxf5 {[%emt 0:00:11]} Bxf5 {[%emt 0:00:09]} 21. e4 {[%emt 0:00:10]} Be6 {[%emt 0:00:16]} 22. f5 {[%emt 0:00:18]} Bxd5 {[%emt 0:00:17]} 23. exd5 {[%emt 0:00:20]} Nd4 {[%emt 0:00:10]} 24. Bxd4 {[%emt 0:00:16]} exd4 {[%emt 0:00:09]} 25. Be4 {[%emt 0:00:17]} Re8 {[%emt 0:00:12]} 26. Qg2 {[%emt 0:00:13]} Kh8 {[%emt 0:00:12]} 27. Rhg1 {[%emt 0:00:12]} d3 {[%emt 0:00:09]} 28. Rxd3 {[%emt 0:00:18]} Qf7 {[%emt 0:00:09]} 29. Rg3 {[%emt 0:00:16]} Re7 {[%emt 0:00:14]} 30. Bb1 {[%emt 0:01:04]} Rbe8 {[%emt 0:00:11]} 31. Qd2 {[%emt 0:00:25]} Qf6 {[%emt 0:00:13]} 32. Rxg7 {[%emt 0:00:11]} Rxg7 {[%emt 0:00:11]} 33. Rxg7 {[%emt 0:00:09]} Qxg7 {[%emt 0:00:11]} 34. Bd3 {[%emt 0:00:11]} Qa1+ {[%emt 0:00:11]} 35. Bb1 {[%emt 0:00:09]} Qe5 {[%emt 0:00:13]} 36. Qg5 {[%emt 0:00:11]} Qe3+ {[%emt 0:00:20]} 37. Qxe3 {[%emt 0:00:09]} Rxe3 {[%emt 0:00:09]} 38. Kd2 {[%emt 0:00:10]} Rxh3 {[%emt 0:00:10]} 39. Bc2 {[%emt 0:00:10]} Kg7 {[%emt 0:00:09]} 40. a3 {[%emt 0:00:10]} Kf6 {[%emt 0:00:09]} 41. b4 {[%emt 0:00:10]} b6 {[%emt 0:00:14]} 42. bxc5 {[%emt 0:00:09]} bxc5 {[%emt 0:00:09]} 43. a4 {[%emt 0:00:09]} h5 {[%emt 0:00:09]} 44. Bd1 {[%emt 0:00:10]} h4 {[%emt 0:00:09]} 45. Bc2 {[%emt 0:00:09]} Rg3 {[%emt 0:00:09]} 46. Ke2 {[%emt 0:00:10]} h3 {[%emt 0:00:09]} 47. Be4 {[%emt 0:00:09]} h2 {[%emt 0:00:10]} 48. Kf2 {[%emt 0:00:09]} Rg1 {[%emt 0:00:09]} 0-1

[Event "EUCC Open Blitz 2024"]
[Site "Miskolc"]
[Date "2024.07.13"]
[Round "1.5"]
[White "Isik, Alparslan"]
[Black "Houhou, Alexandre"]
[Result "*"]
[ECO "A07"]
[WhiteElo "2469"]
[BlackElo "2148"]
[PlyCount "23"]
[EventDate "2024.07.08"]
[EventType "team-tourn"]
[EventCountry "HUN"]
[TimeControl "1500+10"]

1. Nf3 {[%emt 0:22:19]} d5 {[%emt 0:22:16]} 2. g3 {[%emt 0:00:13]} Nd7 {[%emt 0:00:10]} 3. d4 {[%emt 0:00:11]} Nb6 {[%emt 0:00:09]} 4. Bg2 {[%emt 0:00:10]} Bf5 {[%emt 0:00:09]} 5. O-O {[%emt 0:00:12]} e6 {[%emt 0:00:09]} 6. b3 {[%emt 0:00:30]} h6 {[%emt 0:00:11]} 7. Bb2 {[%emt 0:00:10]} Nf6 {[%emt 0:00:10]} 8. Nbd2 {[%emt 0:00:09]} Be7 {[%emt 0:00:12]} 9. c4 {[%emt 0:00:10]} c6 {[%emt 0:00:09]} 10. Ne5 {[%emt 0:00:12]} O-O {[%emt 0:00:16]} 11. Re1 {[%emt 0:00:09]} a5 {[%emt 0:00:24]} 12. a3 {[%emt 0:00:23]} *

[Event "EUCC Open Blitz 2024"]
[Site "Miskolc"]
[Date "2024.07.13"]
[Round "1.5"]
[White "Kamer, Kayra"]
[Black "Gatineau, Yovann"]
[Result "1-0"]
[ECO "A07"]
[WhiteElo "2316"]
[BlackElo "2414"]
[PlyCount "73"]
[EventDate "2024.07.08"]
[EventType "team-tourn"]
[EventCountry "HUN"]
[TimeControl "1500+10"]

1. Nf3 {[%emt 0:22:19]} d5 {[%emt 0:22:16]} 2. g3 {[%emt 0:00:13]} Nd7 {[%emt 0:00:10]} 3. d4 {[%emt 0:00:11]} Nb6 {[%emt 0:00:09]} 4. Bg2 {[%emt 0:00:10]} Bf5 {[%emt 0:00:09]} 5. O-O {[%emt 0:00:12]} e6 {[%emt 0:00:09]} 6. b3 {[%emt 0:00:30]} h6 {[%emt 0:00:11]} 7. Bb2 {[%emt 0:00:10]} Nf6 {[%emt 0:00:10]} 8. Nbd2 {[%emt 0:00:09]} Be7 {[%emt 0:00:12]} 9. c4 {[%emt 0:00:10]} c6 {[%emt 0:00:09]} 10. Ne5 {[%emt 0:00:12]} O-O {[%emt 0:00:16]} 11. Re1 {[%emt 0:00:09]} a5 {[%emt 0:00:24]} 12. a3 {[%emt 0:00:23]} Bh7 {[%emt 0:00:41]} 13. Qc1 {[%emt 0:00:22]} Re8 {[%emt 0:00:17]} 14. Bc3 {[%emt 0:00:10]} a4 {[%emt 0:00:31]} 15. b4 {[%emt 0:00:20]} dxc4 {[%emt 0:00:29]} 16. Ndxc4 {[%emt 0:00:11]} Nxc4 {[%emt 0:00:10]} 17. Nxc4 {[%emt 0:00:09]} Be4 {[%emt 0:00:12]} 18. f3 {[%emt 0:00:19]} Bg6 {[%emt 0:00:11]} 19. e4 {[%emt 0:00:11]} Nd7 {[%emt 0:00:13]} 20. Qe3 {[%emt 0:00:22]} Qc7 {[%emt 0:00:19]} 21. Rad1 {[%emt 0:00:16]} Bf6 {[%emt 0:00:12]} 22. Kh1 {[%emt 0:00:25]} Rad8 {[%emt 0:00:23]} 23. Qc1 {[%emt 0:00:25]} e5 {[%emt 0:00:18]} 24. f4 {[%emt 0:00:33]} exd4 {[%emt 0:00:21]} 25. Bxd4 {[%emt 0:00:09]} Bxd4 {[%emt 0:00:11]} 26. Rxd4 {[%emt 0:00:09]} Nf6 {[%emt 0:00:14]} 27. Rxd8 {[%emt 0:00:16]} Rxd8 {[%emt 0:00:12]} 28. f5 {[%emt 0:00:11]} Bh7 {[%emt 0:00:13]} 29. e5 {[%emt 0:00:09]} Ng4 {[%emt 0:00:10]} 30. Qf4 {[%emt 0:00:09]} h5 {[%emt 0:00:17]} 31. h3 {[%emt 0:00:10]} Nh6 {[%emt 0:00:09]} 32. f6 {[%emt 0:00:11]} Qd7 {[%emt 0:00:23]} 33. Qg5 {[%emt 0:00:20]} Nf5 {[%emt 0:00:10]} 34. g4 {[%emt 0:00:12]} hxg4 {[%emt 0:00:10]} 35. hxg4 {[%emt 0:00:09]} Ng3+ {[%emt 0:00:15]} 36. Kh2 {[%emt 0:00:09]} g6 {[%emt 0:00:09]} 37. Qh6 {[%emt 0:00:19]} 1-0

[Event "EUCC Open Blitz 2024"]
[Site "Miskolc"]
[Date "2024.07.13"]
[Round "1.6"]
[White "Houhou, Alexandre"]
[Black "Isik, Alparslan"]
[Result "*"]
[ECO "B29"]
[WhiteElo "2148"]
[BlackElo "2469"]
[PlyCount "112"]
[EventDate "2024.07.08"]
[EventType "team-tourn"]
[EventCountry "HUN"]
[TimeControl "1500+10"]

1. e4 {[%emt 0:22:18]} c5 2. Nf3 Nf6 {[%emt 0:22:27]} 3. e5 {[%emt 0:00:23]} Nd5 {[%emt 0:00:09]} 4. Nc3 {[%emt 0:00:16]} e6 {[%emt 0:00:10]} 5. Ne4 {[%emt 0:00:43]} f5 {[%emt 0:00:13]} 6. exf6 {[%emt 0:00:12]} Nxf6 {[%emt 0:00:13]} 7. Nc3 {[%emt 0:00:32]} Nc6 {[%emt 0:00:16]} 8. d3 {[%emt 0:00:22]} d5 {[%emt 0:00:26]} 9. g3 {[%emt 0:00:09]} Bd6 {[%emt 0:00:16]} 10. Bg5 {[%emt 0:00:13]} O-O {[%emt 0:00:12]} 11. Bg2 {[%emt 0:00:11]} h6 {[%emt 0:00:10]} 12. Bd2 {[%emt 0:00:32]} Qe8 {[%emt 0:01:09]} 13. Qe2 {[%emt 0:00:23]} Qh5 {[%emt 0:00:15]} 14. h3 {[%emt 0:00:21]} a6 {[%emt 0:00:37]} 15. g4 {[%emt 0:00:17]} Qg6 {[%emt 0:00:09]} 16. Nh4 {[%emt 0:00:19]} Qf7 {[%emt 0:00:09]} 17. Nf3 {[%emt 0:00:24]} Nd4 {[%emt 0:00:20]} 18. Nxd4 {[%emt 0:00:11]} cxd4 {[%emt 0:00:10]} 19. Nd1 {[%emt 0:00:15]} e5 {[%emt 0:00:16]} 20. c3 {[%emt 0:00:10]} dxc3 {[%emt 0:00:11]} 21. Nxc3 {[%emt 0:00:10]} Be6 {[%emt 0:00:09]} 22. O-O {[%emt 0:00:14]} g5 {[%emt 0:00:21]} 23. Rac1 {[%emt 0:00:09]} Rac8 {[%emt 0:00:09]} 24. Rfe1 {[%emt 0:00:11]} Nd7 {[%emt 0:00:19]} 25. Na4 {[%emt 0:00:15]} b5 {[%emt 0:00:10]} 26. Nc3 {[%emt 0:00:09]} Bc5 {[%emt 0:00:11]} 27. Nd1 {[%emt 0:00:12]} Bd6 {[%emt 0:00:17]} 28. Nc3 {[%emt 0:00:10]} Rc7 {[%emt 0:00:11]} 29. a3 {[%emt 0:00:13]} Rfc8 {[%emt 0:00:11]} 30. Kh1 {[%emt 0:00:11]} Bc5 {[%emt 0:00:10]} 31. Rf1 {[%emt 0:00:09]} Bd4 {[%emt 0:00:10]} 32. Qe1 {[%emt 0:00:11]} Nf8 {[%emt 0:00:16]} 33. Qe2 {[%emt 0:00:09]} Ng6 {[%emt 0:00:09]} 34. Be3 {[%emt 0:00:10]} Re8 {[%emt 0:00:14]} 35. Qd2 {[%emt 0:00:10]} Ba7 {[%emt 0:00:12]} 36. Bxa7 {[%emt 0:00:09]} Rxa7 {[%emt 0:00:09]} 37. Qe3 {[%emt 0:00:10]} Rae7 {[%emt 0:00:09]} 38. Qd2 {[%emt 0:00:09]} Rd7 {[%emt 0:00:10]} 39. Ne2 {[%emt 0:00:09]} Nf4 {[%emt 0:00:09]} 40. Nxf4 {[%emt 0:00:09]} gxf4 {[%emt 0:00:09]} 41. Bf3 {[%emt 0:00:10]} h5 {[%emt 0:00:08]} 42. gxh5 {[%emt 0:00:10]} Bxh3 {[%emt 0:00:09]} 43. Rg1+ {[%emt 0:00:08]} Kh8 {[%emt 0:00:09]} 44. Rg6 {[%emt 0:00:09]} Bf5 {[%emt 0:00:12]} 45. Rg5 {[%emt 0:00:10]} Rg8 {[%emt 0:00:12]} 46. Rcg1 Rxg5 47. Rxg5 {[%emt 0:00:17]} Qf6 {[%emt 0:00:18]} 48. Rg2 {[%emt 0:00:17]} Rg7 {[%emt 0:00:12]} 49. Rxg7 {[%emt 0:00:11]} Kxg7 {[%emt 0:00:09]} 50. Bg2 {[%emt 0:00:09]} Kh6 {[%emt 0:00:10]} 51. Qe2 {[%emt 0:00:10]} Be6 {[%emt 0:00:14]} 52. Kg1 {[%emt 0:00:09]} Bf7 {[%emt 0:00:09]} 53. Bf3 {[%emt 0:00:10]} Qg5+ {[%emt 0:00:09]} 54. Kf1 {[%emt 0:00:09]} e4 {[%emt 0:00:11]} 55. dxe4 {[%emt 0:00:09]} d4 {[%emt 0:00:09]} 56. e5 {[%emt 0:00:10]} Bc4 {[%emt 0:00:08]} *

[Event "EUCC Open Blitz 2024"]
[Site "Miskolc"]
[Date "2024.07.13"]
[Round "1.7"]
[White "Farkas, Richard"]
[Black "Papp, Levente"]
[Result "0-1"]
[ECO "C01"]
[WhiteElo "2233"]
[BlackElo "2359"]
[PlyCount "110"]
[EventDate "2024.07.08"]
[EventType "team-tourn"]
[EventCountry "HUN"]
[TimeControl "1500+10"]

1. e4 {[%emt 0:22:18]} e6 {[%emt 0:22:17]} 2. d4 {[%emt 0:00:09]} d5 {[%emt 0:00:09]} 3. exd5 {[%emt 0:00:09]} exd5 {[%emt 0:00:09]} 4. Nf3 {[%emt 0:00:09]} Nf6 {[%emt 0:00:10]} 5. c4 {[%emt 0:00:11]} Bb4+ {[%emt 0:00:14]} 6. Nc3 {[%emt 0:00:09]} O-O {[%emt 0:00:10]} 7. Be2 {[%emt 0:00:10]} dxc4 {[%emt 0:00:14]} 8. O-O {[%emt 0:00:16]} Be6 {[%emt 0:00:15]} 9. Ng5 {[%emt 0:00:12]} Qd7 {[%emt 0:00:56]} 10. Bf3 {[%emt 0:01:22]} Bxc3 {[%emt 0:00:39]} 11. bxc3 {[%emt 0:00:19]} c6 {[%emt 0:00:09]} 12. Nxe6 {[%emt 0:00:20]} Qxe6 {[%emt 0:00:11]} 13. Re1 {[%emt 0:00:22]} Qd6 {[%emt 0:00:34]} 14. Rb1 {[%emt 0:00:22]} b5 {[%emt 0:00:14]} 15. Rxb5 {[%emt 0:00:35]} cxb5 {[%emt 0:00:13]} 16. Bxa8 {[%emt 0:00:10]} Nc6 {[%emt 0:00:21]} 17. Bxc6 {[%emt 0:00:23]} Qxc6 {[%emt 0:00:09]} 18. Ba3 {[%emt 0:00:10]} Re8 {[%emt 0:00:13]} 19. f3 {[%emt 0:00:20]} Nd5 {[%emt 0:00:13]} 20. Qd2 {[%emt 0:00:11]} h6 {[%emt 0:00:12]} 21. Bc5 {[%emt 0:00:10]} a5 {[%emt 0:00:11]} 22. Kf2 {[%emt 0:00:09]} Re6 {[%emt 0:00:19]} 23. Rxe6 {[%emt 0:00:09]} Qxe6 {[%emt 0:00:09]} 24. g3 {[%emt 0:00:11]} Qh3 {[%emt 0:00:10]} 25. Kg1 {[%emt 0:00:11]} Qf5 {[%emt 0:00:09]} 26. Kf2 {[%emt 0:00:10]} Kh7 {[%emt 0:00:24]} 27. Kg2 {[%emt 0:00:09]} Qd3 {[%emt 0:00:12]} 28. Qe1 {[%emt 0:00:12]} Nxc3 {[%emt 0:00:11]} 29. Qe8 {[%emt 0:00:12]} Qe2+ {[%emt 0:00:10]} 30. Qxe2 {[%emt 0:00:10]} Nxe2 {[%emt 0:00:09]} 31. d5 {[%emt 0:00:09]} c3 {[%emt 0:00:14]} 32. d6 {[%emt 0:00:11]} c2 {[%emt 0:00:09]} 33. Be3 {[%emt 0:00:12]} Nd4 {[%emt 0:00:09]} 34. d7 {[%emt 0:00:10]} Nc6 {[%emt 0:00:13]} 35. Kf2 {[%emt 0:00:10]} Kg6 {[%emt 0:00:10]} 36. Ke2 {[%emt 0:00:10]} Kf6 {[%emt 0:00:09]} 37. Kd2 {[%emt 0:00:10]} Ke7 {[%emt 0:00:09]} 38. Kxc2 {[%emt 0:00:10]} Kxd7 {[%emt 0:00:09]} 39. Kc3 {[%emt 0:00:10]} Ke6 {[%emt 0:00:10]} 40. Bc5 {[%emt 0:00:12]} g6 {[%emt 0:00:11]} 41. h3 {[%emt 0:00:09]} h5 {[%emt 0:00:10]} 42. Kd3 {[%emt 0:00:10]} Kd5 {[%emt 0:00:10]} 43. Bf8 {[%emt 0:00:10]} Ne5+ {[%emt 0:00:10]} 44. Ke3 {[%emt 0:00:09]} b4 {[%emt 0:00:10]} 45. Bg7 {[%emt 0:00:09]} a4 {[%emt 0:00:11]} 46. f4 {[%emt 0:00:09]} Nc4+ {[%emt 0:00:13]} 47. Kd3 {[%emt 0:00:09]} b3 {[%emt 0:00:12]} 48. axb3 {[%emt 0:00:09]} axb3 {[%emt 0:00:09]} 49. g4 {[%emt 0:00:13]} b2 {[%emt 0:00:09]} 50. Kc2 {[%emt 0:00:09]} Ke4 {[%emt 0:00:10]} 51. f5 {[%emt 0:00:13]} hxg4 {[%emt 0:00:11]} 52. fxg6 {[%emt 0:00:09]} fxg6 {[%emt 0:00:10]} 53. hxg4 {[%emt 0:00:08]} Kf4 {[%emt 0:00:10]} 54. Bc3 {[%emt 0:00:17]} Kxg4 {[%emt 0:00:09]} 55. Be1 Kf3 0-1